[Event "Titled Tuesday Blitz August 24 2021"]
[White "Quinones Paucar, Cesar"]
[Black "Mitrabha, Guha"]
[WhiteFideId "3800601"]
[BlackFideId "5057000"]
[WhiteElo "2180"]
[BlackElo "2334"]
[Result "0-1"]
[Round "02"]
[TimeControl "180+1"]
[Date "2021.08.24"]
[WhiteClock "0:00:15"]
[BlackClock "0:00:51"]

1. e4 {[%clk 0:02:59]}  e6 {[%clk 0:02:54]} 2. d3 {[%clk 0:02:48]}  d5 {[%clk 0:02:53]} 3. Qe2 {[%clk 0:02:46]}  c5 {[%clk 0:02:44]} 4. Nf3 {[%clk 0:02:43]}  Nc6 {[%clk 0:02:44]} 5. g3 {[%clk 0:02:43]}  Nge7 {[%clk 0:02:44]} 6. Bg2 {[%clk 0:02:42]}  g6 {[%clk 0:02:38]} 7. O-O {[%clk 0:02:40]}  Bg7 {[%clk 0:02:27]} 8. Nbd2 {[%clk 0:02:39]}  O-O {[%clk 0:02:18]} 9. exd5 {[%clk 0:02:36]}  Nxd5 {[%clk 0:02:08]} 10. Nb3 {[%clk 0:02:35]}  b6 {[%clk 0:02:09]} 11. c3 {[%clk 0:02:29]}  Bb7 {[%clk 0:02:07]} 12. d4 {[%clk 0:02:25]}  a5 {[%clk 0:01:44]} 13. dxc5 {[%clk 0:01:01]}  a4 {[%clk 0:01:42]} 14. Nbd4 {[%clk 0:00:49]}  Nxd4 {[%clk 0:01:39]} 15. Nxd4 {[%clk 0:00:46]}  bxc5 {[%clk 0:01:20]} 16. Nb5 {[%clk 0:00:37]}  Qb6 {[%clk 0:01:17]} 17. c4 {[%clk 0:00:37]}  Nb4 {[%clk 0:01:13]} 18. a3 {[%clk 0:00:30]}  Bxg2 {[%clk 0:01:09]} 19. Kxg2 {[%clk 0:00:28]}  Nc6 {[%clk 0:01:09]} 20. Be3 {[%clk 0:00:23]}  Nd4 {[%clk 0:01:10]} 21. Bxd4 {[%clk 0:00:18]}  cxd4 {[%clk 0:01:11]} 22. Qf3 {[%clk 0:00:17]}  Rac8 {[%clk 0:01:10]} 23. Rac1 {[%clk 0:00:17]}  Rc5 {[%clk 0:01:06]} 24. Rfd1 {[%clk 0:00:17]}  e5 {[%clk 0:01:06]} 25. Qd3 {[%clk 0:00:17]}  f5 {[%clk 0:01:05]} 26. f3 {[%clk 0:00:17]}  Rfc8 {[%clk 0:01:05]} 27. b4 {[%clk 0:00:16]}  axb3 {[%clk 0:01:05]} 28. Qxb3 {[%clk 0:00:17]}  h6 {[%clk 0:01:05]} 29. a4 {[%clk 0:00:17]}  Kh7 {[%clk 0:01:05]} 30. Rc2 {[%clk 0:00:17]}  h5 {[%clk 0:00:55]} 31. h4 {[%clk 0:00:16]}  Qe6 {[%clk 0:00:54]} 32. Qd3 {[%clk 0:00:16]}  e4 {[%clk 0:00:51]} 33. fxe4 {[%clk 0:00:14]}  fxe4 {[%clk 0:00:52]} 34. Nxd4 {[%clk 0:00:14]}  exd3 {[%clk 0:00:51]} 35. Nxe6 {[%clk 0:00:15]}  dxc2 {[%clk 0:00:51]} 36. Rc1 {[%clk 0:00:15]}  Rxc4 {[%clk 0:00:51]} 0-1


[Site "https://www.chess.com"]

[Event "Titled Tuesday Blitz August 24 2021"]
[White "Rastbod, Ali"]
[Black "ketster"]
[WhiteFideId "12567477"]
[WhiteElo "2226"]
[BlackElo "2467"]
[Result "0-1"]
[Round "02"]
[TimeControl "180+1"]
[Date "2021.08.24"]
[WhiteClock "0:00:02"]
[BlackClock "0:01:31"]

1. c4 {[%clk 0:02:30]}  Nf6 {[%clk 0:02:58]} 2. Nc3 {[%clk 0:02:30]}  c5 {[%clk 0:02:58]} 3. g3 {[%clk 0:02:30]}  d5 {[%clk 0:02:57]} 4. cxd5 {[%clk 0:02:31]}  Nxd5 {[%clk 0:02:58]} 5. Bg2 {[%clk 0:02:30]}  Nc7 {[%clk 0:02:58]} 6. Qa4+ {[%clk 0:02:29]}  Qd7 {[%clk 0:02:57]} 7. Qxd7+ {[%clk 0:02:28]}  Nxd7 {[%clk 0:02:57]} 8. d3 {[%clk 0:02:22]}  e6 {[%clk 0:02:52]} 9. Nf3 {[%clk 0:02:13]}  Bd6 {[%clk 0:02:45]} 10. Nd2 {[%clk 0:02:10]}  O-O {[%clk 0:02:44]} 11. Nc4 {[%clk 0:02:04]}  Be7 {[%clk 0:02:44]} 12. Bf4 {[%clk 0:01:42]}  Ne8 {[%clk 0:02:34]} 13. O-O {[%clk 0:01:23]}  g5 {[%clk 0:02:33]} 14. Be3 {[%clk 0:01:01]}  Ng7 {[%clk 0:02:32]} 15. Rac1 {[%clk 0:00:39]}  Rb8 {[%clk 0:02:30]} 16. a4 {[%clk 0:00:23]}  Nb6 {[%clk 0:02:24]} 17. b3 {[%clk 0:00:09]}  Rd8 {[%clk 0:02:17]} 18. Ne4 {[%clk 0:00:07]}  Nf5 {[%clk 0:02:10]} 19. Bxc5 {[%clk 0:00:06]}  Bxc5 {[%clk 0:02:07]} 20. Nxc5 {[%clk 0:00:07]}  Nd4 {[%clk 0:02:03]} 21. e3 {[%clk 0:00:05]}  Ne2+ {[%clk 0:02:03]} 22. Kh1 {[%clk 0:00:04]}  Nxc1 {[%clk 0:02:03]} 23. Rxc1 {[%clk 0:00:05]}  Nd7 {[%clk 0:02:03]} 24. Ne4 {[%clk 0:00:05]}  f6 {[%clk 0:01:57]} 25. d4 {[%clk 0:00:04]}  Kg7 {[%clk 0:01:56]} 26. a5 {[%clk 0:00:04]}  b6 {[%clk 0:01:49]} 27. axb6 {[%clk 0:00:03]}  axb6 {[%clk 0:01:45]} 28. b4 {[%clk 0:00:03]}  Bb7 {[%clk 0:01:43]} 29. Ncd6 {[%clk 0:00:02]}  Bd5 {[%clk 0:01:31]} 0-1


[Site "https://www.chess.com"]

[Event "Titled Tuesday Blitz August 24 2021"]
[White "Schmidt, Harald"]
[Black "Stribuk, Artiom"]
[WhiteFideId "4648358"]
[BlackFideId "13515659"]
[WhiteElo "2264"]
[BlackElo "2224"]
[Result "0-1"]
[Round "02"]
[TimeControl "180+1"]
[Date "2021.08.24"]
[WhiteClock "0:00:35"]
[BlackClock "0:00:30"]

1. e4 {[%clk 0:03:00]}  c5 {[%clk 0:02:51]} 2. Nf3 {[%clk 0:02:59]}  Nc6 {[%clk 0:02:51]} 3. c3 {[%clk 0:02:58]}  Nf6 {[%clk 0:02:51]} 4. e5 {[%clk 0:02:58]}  Nd5 {[%clk 0:02:50]} 5. d4 {[%clk 0:02:57]}  cxd4 {[%clk 0:02:48]} 6. cxd4 {[%clk 0:02:57]}  d6 {[%clk 0:02:49]} 7. Bc4 {[%clk 0:02:55]}  e6 {[%clk 0:02:48]} 8. O-O {[%clk 0:02:53]}  Be7 {[%clk 0:02:43]} 9. Qe2 {[%clk 0:02:49]}  O-O {[%clk 0:02:41]} 10. Re1 {[%clk 0:02:20]}  Bd7 {[%clk 0:02:36]} 11. Nbd2 {[%clk 0:02:10]}  Rc8 {[%clk 0:02:13]} 12. Ne4 {[%clk 0:02:04]}  dxe5 {[%clk 0:02:12]} 13. dxe5 {[%clk 0:02:03]}  Qc7 {[%clk 0:02:11]} 14. Bxd5 {[%clk 0:01:44]}  exd5 {[%clk 0:02:07]} 15. Neg5 {[%clk 0:01:41]}  Bf5 {[%clk 0:01:24]} 16. Bf4 {[%clk 0:01:35]}  Qd7 {[%clk 0:01:06]} 17. Nh4 {[%clk 0:01:06]}  h6 {[%clk 0:00:58]} 18. Nxf5 {[%clk 0:01:04]}  Qxf5 {[%clk 0:00:54]} 19. Nh3 {[%clk 0:01:02]}  Nd4 {[%clk 0:00:53]} 20. Qe3 {[%clk 0:00:49]}  Nc2 {[%clk 0:00:50]} 21. Qxa7 {[%clk 0:00:49]}  Nxa1 {[%clk 0:00:45]} 22. Rxa1 {[%clk 0:00:48]}  Rc2 {[%clk 0:00:43]} 23. Qxb7 {[%clk 0:00:45]}  Bc5 {[%clk 0:00:41]} 24. Qxd5 {[%clk 0:00:44]}  Bxf2+ {[%clk 0:00:35]} 25. Nxf2 {[%clk 0:00:44]}  Qxf4 {[%clk 0:00:35]} 26. Rf1 {[%clk 0:00:43]}  Qe3 {[%clk 0:00:32]} 27. b4 {[%clk 0:00:39]}  Rfc8 {[%clk 0:00:32]} 28. b5 {[%clk 0:00:35]}  Rxf2 {[%clk 0:00:30]} 0-1


[Site "https://www.chess.com"]

[Event "Titled Tuesday Blitz August 24 2021"]
[White "Shtyka, Sergey"]
[Black "Rustemov, Alexander"]
[WhiteFideId "4138465"]
[BlackFideId "4119002"]
[WhiteElo "2064"]
[BlackElo "2747"]
[Result "1-0"]
[Round "02"]
[TimeControl "180+1"]
[Date "2021.08.24"]
[WhiteClock "0:00:06"]
[BlackClock "0:00:11"]

1. e4 {[%clk 0:03:00]}  e6 {[%clk 0:02:59]} 2. Nf3 {[%clk 0:03:00]}  d5 {[%clk 0:02:59]} 3. e5 {[%clk 0:03:01]}  c5 {[%clk 0:02:59]} 4. b4 {[%clk 0:03:01]}  b6 {[%clk 0:03:00]} 5. bxc5 {[%clk 0:03:00]}  bxc5 {[%clk 0:03:00]} 6. c3 {[%clk 0:03:00]}  Qd7 {[%clk 0:02:59]} 7. d4 {[%clk 0:03:00]}  Ba6 {[%clk 0:02:59]} 8. Bxa6 {[%clk 0:02:59]}  Nxa6 {[%clk 0:02:59]} 9. O-O {[%clk 0:02:57]}  Ne7 {[%clk 0:02:57]} 10. Ba3 {[%clk 0:02:47]}  Nc6 {[%clk 0:02:38]} 11. Qe2 {[%clk 0:02:37]}  Nc7 {[%clk 0:02:28]} 12. Bxc5 {[%clk 0:02:28]}  Bxc5 {[%clk 0:02:27]} 13. dxc5 {[%clk 0:02:29]}  O-O {[%clk 0:02:25]} 14. Nbd2 {[%clk 0:02:28]}  Na5 {[%clk 0:02:20]} 15. Nb3 {[%clk 0:02:24]}  Nc4 {[%clk 0:02:19]} 16. Rfd1 {[%clk 0:02:18]}  Qa4 {[%clk 0:02:17]} 17. Nfd4 {[%clk 0:02:08]}  Nb5 {[%clk 0:02:11]} 18. Rd3 {[%clk 0:01:45]}  Rae8 {[%clk 0:01:41]} 19. Rg3 {[%clk 0:01:33]}  f5 {[%clk 0:01:31]} 20. Qh5 {[%clk 0:00:52]}  Rf7 {[%clk 0:01:26]} 21. Rh3 {[%clk 0:00:26]}  g6 {[%clk 0:01:25]} 22. Qe2 {[%clk 0:00:24]}  Rc7 {[%clk 0:01:17]} 23. Rd3 {[%clk 0:00:23]}  a6 {[%clk 0:01:08]} 24. h4 {[%clk 0:00:23]}  h6 {[%clk 0:01:07]} 25. h5 {[%clk 0:00:22]}  g5 {[%clk 0:01:07]} 26. f4 {[%clk 0:00:22]}  g4 {[%clk 0:01:07]} 27. Kh2 {[%clk 0:00:21]}  Kf7 {[%clk 0:01:07]} 28. Qf2 {[%clk 0:00:19]}  Kg7 {[%clk 0:01:01]} 29. Qh4 {[%clk 0:00:18]}  Rf7 {[%clk 0:01:02]} 30. Rg3 {[%clk 0:00:15]}  Qa3 {[%clk 0:00:58]} 31. Rxg4+ {[%clk 0:00:12]}  fxg4 {[%clk 0:00:57]} 32. Qxg4+ {[%clk 0:00:12]}  Kf8 {[%clk 0:00:57]} 33. Nxe6+ {[%clk 0:00:11]}  Ke7 {[%clk 0:00:50]} 34. Ned4 {[%clk 0:00:08]}  Nxd4 {[%clk 0:00:48]} 35. Nxd4 {[%clk 0:00:08]}  Qxc5 {[%clk 0:00:45]} 36. Qe6+ {[%clk 0:00:08]}  Kf8 {[%clk 0:00:43]} 37. Qxh6+ {[%clk 0:00:08]}  Kg8 {[%clk 0:00:31]} 38. Qg6+ {[%clk 0:00:07]}  Kf8 {[%clk 0:00:31]} 39. Qh6+ {[%clk 0:00:08]}  Rg7 {[%clk 0:00:23]} 40. Qh8+ {[%clk 0:00:02]}  Kf7 {[%clk 0:00:21]} 41. e6+ {[%clk 0:00:03]}  Rxe6 {[%clk 0:00:13]} 42. Qxg7+ {[%clk 0:00:03]}  Ke8 {[%clk 0:00:11]} 43. Nxe6 {[%clk 0:00:03]}  Qf2 {[%clk 0:00:11]} 44. Qf8+ {[%clk 0:00:03]}  Kd7 {[%clk 0:00:11]} 45. Nc5+ {[%clk 0:00:04]}  Kc6 {[%clk 0:00:11]} 46. Rb1 {[%clk 0:00:04]}  Ne3 {[%clk 0:00:09]} 47. Qf6+ {[%clk 0:00:03]}  Kxc5 {[%clk 0:00:09]} 48. Qd4+ {[%clk 0:00:03]}  Kc6 {[%clk 0:00:09]} 49. Rb6+ {[%clk 0:00:04]}  Kd7 {[%clk 0:00:09]} 50. Qg7+ {[%clk 0:00:04]}  Kc8 {[%clk 0:00:09]} 51. Qb7+ {[%clk 0:00:04]}  Kd8 {[%clk 0:00:09]} 52. Rd6+ {[%clk 0:00:04]}  Ke8 {[%clk 0:00:10]} 53. Qd7+ {[%clk 0:00:04]}  Kf8 {[%clk 0:00:10]} 54. Rf6+ {[%clk 0:00:05]}  Kg8 {[%clk 0:00:11]} 55. Qf7+ {[%clk 0:00:05]}  Kh8 {[%clk 0:00:11]} 56. Rh6# {[%clk 0:00:06]} 1-0


[Site "https://www.chess.com"]

[Event "Titled Tuesday Blitz August 24 2021"]
[White "Sjugirov, Sanan"]
[Black "Shuvalova, Polina"]
[WhiteFideId "4189302"]
[BlackFideId "24171760"]
[WhiteElo "2472"]
[BlackElo "2299"]
[Result "1-0"]
[Round "02"]
[TimeControl "180+1"]
[Date "2021.08.24"]
[WhiteClock "0:00:07"]
[BlackClock "0:00:04"]

1. e4 {[%clk 0:03:00]}  c6 {[%clk 0:02:55]} 2. d4 {[%clk 0:02:59]}  d5 {[%clk 0:02:56]} 3. Nc3 {[%clk 0:02:49]}  dxe4 {[%clk 0:02:56]} 4. Nxe4 {[%clk 0:02:50]}  Nf6 {[%clk 0:02:56]} 5. Nxf6+ {[%clk 0:02:50]}  exf6 {[%clk 0:02:57]} 6. c3 {[%clk 0:02:50]}  Bd6 {[%clk 0:02:58]} 7. Bd3 {[%clk 0:02:51]}  O-O {[%clk 0:02:58]} 8. Qc2 {[%clk 0:02:51]}  h5 {[%clk 0:02:58]} 9. Ne2 {[%clk 0:02:50]}  Re8 {[%clk 0:02:58]} 10. O-O {[%clk 0:02:49]}  h4 {[%clk 0:02:58]} 11. h3 {[%clk 0:02:49]}  Nd7 {[%clk 0:02:56]} 12. Bd2 {[%clk 0:02:49]}  Nf8 {[%clk 0:02:56]} 13. Rae1 {[%clk 0:02:48]}  Bc7 {[%clk 0:02:53]} 14. b3 {[%clk 0:02:38]}  Be6 {[%clk 0:02:47]} 15. Kh1 {[%clk 0:02:33]}  Qd7 {[%clk 0:02:45]} 16. Ng1 {[%clk 0:02:32]}  Rad8 {[%clk 0:02:33]} 17. f4 {[%clk 0:02:28]}  f5 {[%clk 0:01:58]} 18. Nf3 {[%clk 0:02:18]}  Ng6 {[%clk 0:01:59]} 19. Ng5 {[%clk 0:02:09]}  c5 {[%clk 0:01:46]} 20. Nxe6 {[%clk 0:01:59]}  fxe6 {[%clk 0:01:45]} 21. Be3 {[%clk 0:01:34]}  cxd4 {[%clk 0:01:43]} 22. cxd4 {[%clk 0:01:34]}  Ne7 {[%clk 0:01:31]} 23. Qf2 {[%clk 0:01:28]}  Nd5 {[%clk 0:01:30]} 24. Bd2 {[%clk 0:01:26]}  Nf6 {[%clk 0:01:19]} 25. Be3 {[%clk 0:01:13]}  Nd5 {[%clk 0:01:18]} 26. Qxh4 {[%clk 0:00:51]}  Nxe3 {[%clk 0:01:13]} 27. Rxe3 {[%clk 0:00:52]}  Qxd4 {[%clk 0:01:12]} 28. Rg3 {[%clk 0:00:45]}  Bb6 {[%clk 0:01:02]} 29. Bb5 {[%clk 0:00:38]}  Rf8 {[%clk 0:01:01]} 30. Bc4 {[%clk 0:00:37]}  Rfe8 {[%clk 0:00:45]} 31. Rd3 {[%clk 0:00:30]}  Qc5 {[%clk 0:00:38]} 32. Bxe6+ {[%clk 0:00:20]}  Rxe6 {[%clk 0:00:32]} 33. Rxd8+ {[%clk 0:00:20]}  Bxd8 {[%clk 0:00:32]} 34. Qxd8+ {[%clk 0:00:21]}  Kh7 {[%clk 0:00:31]} 35. Qh4+ {[%clk 0:00:20]}  Rh6 {[%clk 0:00:31]} 36. Qg5 {[%clk 0:00:16]}  Qd5 {[%clk 0:00:31]} 37. Kh2 {[%clk 0:00:13]}  Rg6 {[%clk 0:00:28]} 38. Qh5+ {[%clk 0:00:13]}  Rh6 {[%clk 0:00:29]} 39. Qe2 {[%clk 0:00:10]}  Re6 {[%clk 0:00:27]} 40. Qf2 {[%clk 0:00:10]}  a6 {[%clk 0:00:26]} 41. Rc1 {[%clk 0:00:10]}  Qe4 {[%clk 0:00:22]} 42. Rc4 {[%clk 0:00:09]}  Qd5 {[%clk 0:00:20]} 43. Rc7 {[%clk 0:00:06]}  Rg6 {[%clk 0:00:16]} 44. Rc2 {[%clk 0:00:02]}  Qe4 {[%clk 0:00:16]} 45. Rd2 {[%clk 0:00:03]}  Rc6 {[%clk 0:00:14]} 46. Qh4+ {[%clk 0:00:03]}  Rh6 {[%clk 0:00:14]} 47. Qg3 {[%clk 0:00:03]}  Rg6 {[%clk 0:00:14]} 48. Qf2 {[%clk 0:00:04]}  Rc6 {[%clk 0:00:14]} 49. Re2 {[%clk 0:00:04]}  Qd5 {[%clk 0:00:14]} 50. Re5 {[%clk 0:00:04]}  Qd3 {[%clk 0:00:12]} 51. Qh4+ {[%clk 0:00:04]}  Rh6 {[%clk 0:00:12]} 52. Qg3 {[%clk 0:00:04]}  Qd7 {[%clk 0:00:09]} 53. Qg5 {[%clk 0:00:04]}  Rf6 {[%clk 0:00:07]} 54. Qh5+ {[%clk 0:00:04]}  Kg8 {[%clk 0:00:04]} 55. Qe2 {[%clk 0:00:04]}  Kh7 {[%clk 0:00:03]} 56. Qh5+ {[%clk 0:00:03]}  Kg8 {[%clk 0:00:04]} 57. a4 {[%clk 0:00:04]}  g6 {[%clk 0:00:02]} 58. Qe2 {[%clk 0:00:04]}  Rf7 {[%clk 0:00:01]} 59. a5 {[%clk 0:00:05]}  Kg7 {[%clk 0:00:02]} 60. b4 {[%clk 0:00:05]}  Qd4 {[%clk 0:00:02]} 61. Qf3 {[%clk 0:00:04]}  Qxb4 {[%clk 0:00:03]} 62. Re6 {[%clk 0:00:04]}  Qc4 {[%clk 0:00:02]} 63. Rb6 {[%clk 0:00:03]}  Qc5 {[%clk 0:00:02]} 64. Qg3 {[%clk 0:00:03]}  Rf6 {[%clk 0:00:01]} 65. Rxb7+ {[%clk 0:00:04]}  Rf7 {[%clk 0:00:01]} 66. Rb6 {[%clk 0:00:04]}  Rf6 {[%clk 0:00:02]} 67. Qb3 {[%clk 0:00:05]}  Qc7 {[%clk 0:00:01]} 68. Rb7 {[%clk 0:00:05]}  Rf7 {[%clk 0:00:02]} 69. Rxc7 {[%clk 0:00:05]}  Rxc7 {[%clk 0:00:02]} 70. Qb6 {[%clk 0:00:05]}  Rc4 {[%clk 0:00:03]} 71. Qxa6 {[%clk 0:00:05]}  Rxf4 {[%clk 0:00:03]} 72. Qb7+ {[%clk 0:00:06]}  Kh6 {[%clk 0:00:04]} 73. a6 {[%clk 0:00:07]} 1-0


[Site "https://www.chess.com"]

[Event "Titled Tuesday Blitz August 24 2021"]
[White "Skuhala, Jernej"]
[Black "Jarovinsky, Alexey"]
[WhiteFideId "14605651"]
[BlackFideId "14115131"]
[WhiteElo "2527"]
[BlackElo "2780"]
[Result "0-1"]
[Round "02"]
[TimeControl "180+1"]
[Date "2021.08.24"]
[WhiteClock "0:01:36"]
[BlackClock "0:00:15"]

1. e3 {[%clk 0:02:58]}  Nc6 {[%clk 0:03:00]} 2. d4 {[%clk 0:02:58]}  e5 {[%clk 0:03:00]} 3. d5 {[%clk 0:02:58]}  Nce7 {[%clk 0:02:59]} 4. c4 {[%clk 0:02:58]}  Ng6 {[%clk 0:02:59]} 5. Nc3 {[%clk 0:02:59]}  Bb4 {[%clk 0:02:58]} 6. Ne2 {[%clk 0:02:58]}  f5 {[%clk 0:02:54]} 7. a3 {[%clk 0:02:58]}  Bxc3+ {[%clk 0:02:54]} 8. Nxc3 {[%clk 0:02:59]}  d6 {[%clk 0:02:54]} 9. Be2 {[%clk 0:02:58]}  Nf6 {[%clk 0:02:54]} 10. O-O {[%clk 0:02:57]}  O-O {[%clk 0:02:47]} 11. Qc2 {[%clk 0:02:57]}  f4 {[%clk 0:02:44]} 12. exf4 {[%clk 0:02:56]}  Nxf4 {[%clk 0:02:43]} 13. Bxf4 {[%clk 0:02:55]}  exf4 {[%clk 0:02:44]} 14. Bf3 {[%clk 0:02:55]}  Bg4 {[%clk 0:02:34]} 15. Bxg4 {[%clk 0:02:48]}  Nxg4 {[%clk 0:02:34]} 16. f3 {[%clk 0:02:49]}  Ne3 {[%clk 0:02:33]} 17. Qb3 {[%clk 0:02:49]}  Nxf1 {[%clk 0:02:30]} 18. Rxf1 {[%clk 0:02:50]}  b6 {[%clk 0:02:27]} 19. Ne4 {[%clk 0:02:45]}  Re8 {[%clk 0:02:20]} 20. Re1 {[%clk 0:02:45]}  Qh4 {[%clk 0:02:08]} 21. Re2 {[%clk 0:02:43]}  Re7 {[%clk 0:01:57]} 22. Qa4 {[%clk 0:02:36]}  a5 {[%clk 0:01:55]} 23. h3 {[%clk 0:02:34]}  Rae8 {[%clk 0:01:39]} 24. Qc2 {[%clk 0:02:33]}  Re5 {[%clk 0:01:31]} 25. a4 {[%clk 0:02:33]}  Kh8 {[%clk 0:01:26]} 26. b3 {[%clk 0:02:33]}  h6 {[%clk 0:01:23]} 27. Qd2 {[%clk 0:02:29]}  Rf8 {[%clk 0:01:19]} 28. Qe1 {[%clk 0:02:13]}  Qxe1+ {[%clk 0:01:12]} 29. Rxe1 {[%clk 0:02:14]}  Rfe8 {[%clk 0:01:12]} 30. Kf2 {[%clk 0:02:14]}  g5 {[%clk 0:01:10]} 31. h4 {[%clk 0:02:08]}  g4 {[%clk 0:01:03]} 32. Re2 {[%clk 0:02:06]}  Kg7 {[%clk 0:01:00]} 33. Re1 {[%clk 0:02:03]}  g3+ {[%clk 0:00:39]} 34. Kf1 {[%clk 0:02:02]}  Kg6 {[%clk 0:00:36]} 35. Re2 {[%clk 0:02:00]}  R8e7 {[%clk 0:00:34]} 36. Ke1 {[%clk 0:01:53]}  Kh5 {[%clk 0:00:31]} 37. Kd2 {[%clk 0:01:53]}  Kxh4 {[%clk 0:00:29]} 38. Kd3 {[%clk 0:01:51]}  Kh5 {[%clk 0:00:27]} 39. Re1 {[%clk 0:01:51]}  Kg6 {[%clk 0:00:26]} 40. Rh1 {[%clk 0:01:51]}  h5 {[%clk 0:00:20]} 41. Rh4 {[%clk 0:01:50]}  Rxe4 {[%clk 0:00:20]} 42. fxe4 {[%clk 0:01:45]}  Kg5 {[%clk 0:00:21]} 43. Rh3 {[%clk 0:01:40]}  h4 {[%clk 0:00:21]} 44. Rh1 {[%clk 0:01:38]}  Kg4 {[%clk 0:00:21]} 45. Rf1 {[%clk 0:01:37]}  Re5 {[%clk 0:00:19]} 46. Kd4 {[%clk 0:01:37]}  Rh5 {[%clk 0:00:17]} 47. Rh1 {[%clk 0:01:36]}  f3 {[%clk 0:00:16]} 48. gxf3+ {[%clk 0:01:36]}  Kf4 {[%clk 0:00:15]} 0-1


[Site "https://www.chess.com"]

[Event "Titled Tuesday Blitz August 24 2021"]
[White "Terry, Renato"]
[Black "Zarubitski, Viachaslau"]
[WhiteFideId "3803457"]
[BlackFideId "13509373"]
[WhiteElo "2581"]
[BlackElo "2315"]
[Result "1/2-1/2"]
[Round "02"]
[TimeControl "180+1"]
[Date "2021.08.24"]
[WhiteClock "0:00:04"]
[BlackClock "0:00:09"]

1. e4 {[%clk 0:03:00]}  e5 {[%clk 0:02:58]} 2. Nf3 {[%clk 0:03:00]}  Nf6 {[%clk 0:02:58]} 3. Nxe5 {[%clk 0:02:59]}  d6 {[%clk 0:02:58]} 4. Nf3 {[%clk 0:03:00]}  Nxe4 {[%clk 0:02:56]} 5. Nc3 {[%clk 0:03:00]}  Nf6 {[%clk 0:02:56]} 6. d4 {[%clk 0:03:00]}  Be7 {[%clk 0:02:56]} 7. Bd3 {[%clk 0:03:00]}  Bg4 {[%clk 0:02:57]} 8. h3 {[%clk 0:02:58]}  Bh5 {[%clk 0:02:56]} 9. O-O {[%clk 0:02:58]}  O-O {[%clk 0:02:55]} 10. g4 {[%clk 0:02:49]}  Bg6 {[%clk 0:02:52]} 11. Re1 {[%clk 0:02:49]}  Re8 {[%clk 0:02:45]} 12. Bg5 {[%clk 0:02:45]}  Nbd7 {[%clk 0:02:42]} 13. Qd2 {[%clk 0:02:40]}  c6 {[%clk 0:02:26]} 14. Bf4 {[%clk 0:01:58]}  Qb6 {[%clk 0:02:17]} 15. Na4 {[%clk 0:01:54]}  Qc7 {[%clk 0:02:10]} 16. c4 {[%clk 0:01:54]}  Bf8 {[%clk 0:02:08]} 17. Bxg6 {[%clk 0:01:43]}  hxg6 {[%clk 0:02:05]} 18. Ng5 {[%clk 0:01:39]}  Rxe1+ {[%clk 0:01:45]} 19. Rxe1 {[%clk 0:01:39]}  Re8 {[%clk 0:01:45]} 20. b3 {[%clk 0:01:36]}  Qd8 {[%clk 0:01:38]} 21. Nc3 {[%clk 0:01:26]}  Rxe1+ {[%clk 0:01:34]} 22. Qxe1 {[%clk 0:01:26]}  Qa5 {[%clk 0:01:34]} 23. Kf1 {[%clk 0:01:27]}  d5 {[%clk 0:01:26]} 24. c5 {[%clk 0:01:22]}  b6 {[%clk 0:01:25]} 25. cxb6 {[%clk 0:01:18]}  axb6 {[%clk 0:01:25]} 26. Bd2 {[%clk 0:01:12]}  Qa7 {[%clk 0:01:17]} 27. a4 {[%clk 0:01:07]}  c5 {[%clk 0:01:13]} 28. Nb5 {[%clk 0:01:06]}  Qb8 {[%clk 0:01:11]} 29. Kg2 {[%clk 0:01:05]}  c4 {[%clk 0:00:56]} 30. bxc4 {[%clk 0:01:05]}  dxc4 {[%clk 0:00:57]} 31. Qe2 {[%clk 0:01:06]}  Qa8+ {[%clk 0:00:56]} 32. Qf3 {[%clk 0:00:39]}  Qxa4 {[%clk 0:00:55]} 33. Nc3 {[%clk 0:00:25]}  Qc2 {[%clk 0:00:53]} 34. Nce4 {[%clk 0:00:19]}  b5 {[%clk 0:00:43]} 35. Nxf6+ {[%clk 0:00:18]}  gxf6 {[%clk 0:00:43]} 36. Ne4 {[%clk 0:00:18]}  b4 {[%clk 0:00:39]} 37. Bg5 {[%clk 0:00:09]}  b3 {[%clk 0:00:23]} 38. Bxf6 {[%clk 0:00:07]}  b2 {[%clk 0:00:22]} 39. Ng5 {[%clk 0:00:06]}  b1=Q {[%clk 0:00:11]} 40. Be5 {[%clk 0:00:07]}  Nxe5 {[%clk 0:00:06]} 41. dxe5 {[%clk 0:00:08]}  f5 {[%clk 0:00:04]} 42. Qd5+ {[%clk 0:00:07]}  Kh8 {[%clk 0:00:04]} 43. Qf7 {[%clk 0:00:04]}  Qe4+ {[%clk 0:00:03]} 44. Nxe4 {[%clk 0:00:05]}  Qxe4+ {[%clk 0:00:04]} 45. Kg1 {[%clk 0:00:06]}  Qb1+ {[%clk 0:00:03]} 46. Kg2 {[%clk 0:00:05]}  Qe4+ {[%clk 0:00:03]} 47. Kg1 {[%clk 0:00:06]}  Qe1+ {[%clk 0:00:04]} 48. Kg2 {[%clk 0:00:06]}  Bh6 {[%clk 0:00:04]} 49. e6 {[%clk 0:00:02]}  Qe4+ {[%clk 0:00:04]} 50. Kg1 {[%clk 0:00:03]}  Qe1+ {[%clk 0:00:05]} 51. Kg2 {[%clk 0:00:03]}  Qe4+ {[%clk 0:00:02]} 52. Kg1 {[%clk 0:00:03]}  Bg5 {[%clk 0:00:02]} 53. Qxg6 {[%clk 0:00:02]}  Bh4 {[%clk 0:00:03]} 54. Qh5+ {[%clk 0:00:02]}  Kg7 {[%clk 0:00:03]} 55. Qxh4 {[%clk 0:00:03]}  Qe1+ {[%clk 0:00:03]} 56. Kg2 {[%clk 0:00:03]}  Qe4+ {[%clk 0:00:04]} 57. Kf1 {[%clk 0:00:04]}  Qd3+ {[%clk 0:00:03]} 58. Kg1 {[%clk 0:00:04]}  Qd1+ {[%clk 0:00:04]} 59. Kg2 {[%clk 0:00:04]}  Qd5+ {[%clk 0:00:04]} 60. Kh2 {[%clk 0:00:03]}  Qxe6 {[%clk 0:00:03]} 61. Qg5+ {[%clk 0:00:03]}  Kf7 {[%clk 0:00:03]} 62. gxf5 {[%clk 0:00:02]}  Qe5+ {[%clk 0:00:04]} 63. Kg2 {[%clk 0:00:02]}  Qe4+ {[%clk 0:00:04]} 64. Kg1 {[%clk 0:00:02]}  Qe1+ {[%clk 0:00:05]} 65. Kg2 {[%clk 0:00:02]}  Qe4+ {[%clk 0:00:04]} 66. Kg3 {[%clk 0:00:02]}  Qd3+ {[%clk 0:00:04]} 67. f3 {[%clk 0:00:02]}  c3 {[%clk 0:00:04]} 68. Qg6+ {[%clk 0:00:02]}  Kf8 {[%clk 0:00:05]} 69. Qf6+ {[%clk 0:00:02]}  Ke8 {[%clk 0:00:05]} 70. Qe6+ {[%clk 0:00:02]}  Kd8 {[%clk 0:00:05]} 71. Qb6+ {[%clk 0:00:03]}  Kd7 {[%clk 0:00:05]} 72. Qb7+ {[%clk 0:00:03]}  Kd8 {[%clk 0:00:04]} 73. Qb6+ {[%clk 0:00:03]}  Kd7 {[%clk 0:00:04]} 74. Qb7+ {[%clk 0:00:04]}  Kd6 {[%clk 0:00:05]} 75. Qb6+ {[%clk 0:00:03]}  Ke5 {[%clk 0:00:05]} 76. Qe6+ {[%clk 0:00:03]}  Kd4 {[%clk 0:00:05]} 77. Qd6+ {[%clk 0:00:03]}  Ke3 {[%clk 0:00:06]} 78. Qxd3+ {[%clk 0:00:02]}  Kxd3 {[%clk 0:00:07]} 79. f6 {[%clk 0:00:03]}  c2 {[%clk 0:00:08]} 80. f7 {[%clk 0:00:03]}  c1=Q {[%clk 0:00:08]} 81. f8=Q {[%clk 0:00:04]}  Qg5+ {[%clk 0:00:09]} 82. Kh2 {[%clk 0:00:04]}  Qd2+ {[%clk 0:00:09]} 83. Kg1 {[%clk 0:00:04]}  Qc1+ {[%clk 0:00:07]} 84. Kf2 {[%clk 0:00:03]}  Qd2+ {[%clk 0:00:08]} 85. Kf1 {[%clk 0:00:02]}  Qc1+ {[%clk 0:00:08]} 86. Kg2 {[%clk 0:00:03]}  Qg5+ {[%clk 0:00:08]} 87. Kh2 {[%clk 0:00:02]}  Qd2+ {[%clk 0:00:08]} 88. Kh1 {[%clk 0:00:02]}  Qc1+ {[%clk 0:00:08]} 89. Kg2 {[%clk 0:00:02]}  Qd2+ {[%clk 0:00:08]} 90. Kg1 {[%clk 0:00:03]}  Qc1+ {[%clk 0:00:08]} 91. Kf2 {[%clk 0:00:04]}  Qd2+ {[%clk 0:00:09]} 92. Kf1 {[%clk 0:00:04]}  Qc1+ {[%clk 0:00:09]} 93. Kg2 {[%clk 0:00:04]} 1/2-1/2


[Site "https://www.chess.com"]